Cogmind - Beta 13 @@@ ROGUE MODE // 2024.04.08 @ 13:07:32 Player: CogEmotions! Result: Self-destructed Performance ------------- Evolutions (4) 2000 Regions Visited (7) 1400 Robots Destroyed (64) 320 Value Destroyed (2433) 2433 Prototype IDs (4) 80 Alien Tech Used (0) 0 Bonus (16) 16 TOTAL SCORE: 6249 Bonus ------- Follower Combat Kills 216 Friendly Fire -200 Cogmind --------- Core Integrity 275/850 Matter 80/300 Energy 100/100 System Corruption 9% Temperature Cool (9) Movement Core (1400) Ox27 Location -6/Factory Parts ------- > --- POWER (2) -------- (None) > --- PROPULSION (4) --- (None) > --- UTILITY (5) ------ Huge Storage Unit Advanced Targeting Computer Core Analyzer > --- WEAPON (4) ------- Spear > --- INVENTORY (25) --- Armored Treads Improved Heat Sink Improved Heat Sink Improved Heat Sink Improved Cooling System Coolant Injector High-capacity Matter Pod (200) Advanced Visual Processing Unit Target Analyzer Core Analyzer Core Analyzer Actuator Array Advanced Beam Rifle Gatling Laser Improved Datajack Peak State ------------ > --- POWER ------------ Light Nuclear Core Reinforced Deuterium Engine > --- PROPULSION ------- Improved Carbon-fiber Leg Improved Carbon-fiber Leg Improved Carbon-fiber Leg Improved Carbon-fiber Leg > --- UTILITY ---------- Huge Storage Unit Advanced Weight Redist. System Advanced Targeting Computer Core Analyzer Improved Light Armor Plating > --- WEAPON ----------- Gatling Laser Gatling Laser Cooled Pulse Rifle Advanced Assault Cannon > --- INVENTORY -------- Light Angular Momentum Engine Armored Treads Titanium Leg Improved Carbon-fiber Leg Improved Carbon-fiber Leg Improved Heat Sink Improved Heat Sink Improved Cooling System Coolant Injector High-capacity Matter Pod Advanced Visual Processing Unit Advanced Targeting Computer Core Analyzer Core Analyzer Kinecellerator Actuator Array Improved Shield Generator Advanced Beam Rifle Minigun Enhanced Autogun Advanced Assault Cannon Improved Datajack Spear [Rating: 62] Favorites ----------- Power Light Ion Engine Engine Light Ion Engine Power Core Nuclear Core Propulsion Light Treads Treads Light Treads Leg Improved Carbon-fiber Leg Utility High-capacity Storage Unit Device Advanced Weight Redist. System Storage High-capacity Storage Unit Processor Core Analyzer Protection Improved Light Armor Plating Weapon Light Assault Rifle Energy Gun Gatling Laser Energy Cannon Ion Cannon Ballistic Gun Light Assault Rifle Ballistic Cannon Light Cannon Launcher Rocket Launcher Piercing Weapon Spear Build | -11 -10 -10 -9 -9 -8 -7 -6 ------- Run | Yrd Mat Min Mat Min Mat Fac Fac Slots Evolved 8 | . . . 2 . 2 2 2 Power 1 | . . . . . . 1 . Propulsion 2 | . . . . . 1 . 1 Utility 3 | . . . 2 . . 1 . Weapon 2 | . . . . . 1 . 1 Parts Attached 98 | 6 6 1 4 1 39 27 14 Power 14 | 1 1 . . . 7 4 1 Engine 8 | 1 1 . . . 3 2 1 Core 6 | . . . . . 4 2 . Reactor . | . . . . . . . . Propulsion 30 | 2 . . . . 12 12 4 Treads 11 | 2 . . . . 6 3 . Leg 19 | . . . . . 6 9 4 Wheel . | . . . . . . . . Hover . | . . . . . . . . Flight . | . . . . . . . . Utility 22 | 1 4 . 2 1 7 4 3 Device 10 | . . . 2 . 3 3 2 Storage 4 | 1 2 . . . 1 . . Processor 4 | . . . . . 3 . 1 Hackware . | . . . . . . . . Protection 4 | . 2 . . 1 . 1 . Artifact . | . . . . . . . . Weapon 32 | 2 1 1 2 . 13 7 6 Energy Gun 11 | . . . . . 6 4 1 Energy Cannon 1 | . . . . . 1 . . Ballistic Gun 11 | 2 . . 1 . 3 3 2 Ballistic Cannon 5 | . 1 . 1 . 1 . 2 Launcher 3 | . . 1 . . 2 . . Special Weapon . | . . . . . . . . Impact Weapon . | . . . . . . . . Slashing Weapon . | . . . . . . . . Piercing Weapon 1 | . . . . . . . 1 Special Melee Weapon . | . . . . . . . . Unidentified Prototypes 4 | . . . . . 2 2 . Parts Lost 29 | . 1 . . . 7 1 20 Power 7 | . 1 . . . 2 1 3 Propulsion 10 | . . . . . 3 . 7 Utility 6 | . . . . . 1 . 5 Weapon 6 | . . . . . 1 . 5 Highest Loss Streak 12 | . 1 . . . 2 1 12 To Critical Strikes . | . . . . . . . . Average Slot Usage (%) 97 | . 97 100 88 100 98 99 83 Engine 7 | . 13 14 11 11 2 5 5 Core 4 | . . . . . 6 8 4 Treads 15 | . 28 28 22 22 19 1 . Leg 8 | . . . . . 7 21 22 Device 11 | . . . 11 22 19 7 5 Storage 9 | . 14 14 11 11 9 7 6 Processor 5 | . . . . . 4 15 12 Protection 7 | . 12 14 11 11 3 6 4 Energy Gun 7 | . . . . . 15 12 9 Ballistic Gun 8 | . 26 14 13 11 3 4 1 Ballistic Cannon 4 | . 2 9 2 11 1 1 7 Launcher 2 | . . 4 5 . 2 3 . Naked Turns . | . . . . . . . . Heaviest Build 124 | 10 50 51 53 53 100 115 124 Greatest Support 81 | 40 40 40 40 40 69 72 81 Greatest Overweight (x) 3 | 1 1 1 1 1 2 2 3 Average Overweight (x) . | . . 1 1 1 . 1 1 Largest Inventory Capacity 25 | 8 20 20 20 20 25 25 25 Average Capacity 21 | 7 15 20 20 20 22 25 25 Most Carried 25 | 6 16 18 20 20 22 25 24 Average Carried 18 | 2 9 16 18 18 18 21 21 Final Capacity 25 | 8 20 20 20 20 25 25 25 Final Carried 25 | 1 16 18 18 19 20 25 15 Class Distribution -------------------- 44% | Mutant 37% | Gunner 16% | Tank Dominant Class ---------------- Mutant | -10/Materials Mutant | -10/Mines Mutant | -9/Materials Mutant | -9/Mines Tank | -8/Materials Gunner | -7/Factory Gunner | -6/Factory Resources | -11 -10 -10 -9 -9 -8 -7 -6 ----------- Run | Yrd Mat Min Mat Min Mat Fac Fac Matter Collected 1970 | 221 142 23 163 221 581 458 161 Remotely . | . . . . . . . . Salvage Created 2521 | . 260 14 188 142 1231 350 336 Parts 97 | . 19 4 10 5 31 13 15 Haulers Intercepted . | . . . . . . . . Recyclers Shooed . | . . . . . . . . Parts Field Recycled . | . . . . . . . . Retrieved Matter . | . . . . . . . . Parts Self-Destructed . | . . . . . . . . Prevented . | . . . . . . . . Kills | -11 -10 -10 -9 -9 -8 -7 -6 ------- Run | Yrd Mat Min Mat Min Mat Fac Fac Combat Hostiles Destroyed 51 | . 7 . 5 1 25 6 7 Melee 1 | . . . . . 1 . . Guns 32 | . 7 . 3 . 16 5 1 Cannons 12 | . . . 2 1 4 . 5 AOE 2 | . . . . . 1 1 . Classes Destroyed 14 | . 4 1 1 1 4 2 1 Worker 3 | . . . . . 1 2 . Builder 2 | . . . . 1 1 . . Tunneler 1 | . . 1 . . . . . Recycler 3 | . 1 . . 1 1 . . Operator 2 | . . . . . . . 2 Watcher 1 | . 1 . . . . . . Swarmer 6 | . 5 . . . . 1 . Grunt 29 | . 2 . 4 1 17 1 4 Brawler 2 | . . . . . . 1 1 Duelist 2 | . . . . . 1 1 . Sentry 4 | . . . 1 . 2 1 . Specialist 4 | . . . . . 4 . . Hunter 1 | . . . . . 1 . . Programmer 4 | . . . . . . 2 2 Best Kill Streak 6 | . 3 1 2 2 6 2 4 Combat Bots Only 5 | . 3 . 2 1 5 2 3 Max Kills in Single Turn 2 | . 2 1 1 1 2 2 1 Gunslinging 1 | . 1 . . . 1 . . Exploded 1 | . . . . . 1 1 . Melee 1 | . . . . . 1 . . Uniques/NPCs Destroyed . | . . . . . . . . Combat | -11 -10 -10 -9 -9 -8 -7 -6 -------- Run | Yrd Mat Min Mat Min Mat Fac Fac Hostile Shots Fired 617 | . 62 . 39 2 191 95 228 Missed 185 | . 21 . 16 1 53 37 57 Damage Taken 6019 | . 383 . 256 8 1960 622 2790 Core 1053 | . 47 . 36 . 377 18 575 Absorbed by Shields 432 | . . . 54 3 212 . 163 Redirected to Shielding 12 | . . . . . 12 . . Core Remaining (%) 80 | 100 . 81 . 91 31 97 . Volleys Fired 196 | . 36 . 26 7 74 19 34 Largest 4 | . 2 . 2 2 3 3 4 Hottest 228 | . 55 . 55 55 195 221 228 Shots Fired 466 | . 73 3 47 14 198 47 84 Gun 374 | . 71 2 36 7 167 46 45 Cannon 77 | . 2 1 4 7 24 . 39 Launcher 15 | . . . 7 . 7 1 . Special . | . . . . . . . . Kinetic 231 | . 73 3 40 14 50 5 46 Thermal 220 | . . . . . 141 41 38 Explosive 15 | . . . 7 . 7 1 . Electromagnetic . | . . . . . . . . Robot Hit Streak 20 | . 7 8 9 5 20 15 10 Robot Miss Streak 10 | . 10 1 3 3 3 3 5 Penetration Max . | . . . . . . . . Secondary Targets 7 | . 2 . 1 . 2 1 1 Max Gunslinging Chain 1 | . 1 . 1 . 1 1 1 Shots Hit Robots 311 | . 35 1 30 9 152 30 54 Core Hits 154 | . 16 1 19 4 63 27 24 Critical Kills . | . . . . . . . . Critical Parts Destroyed . | . . . . . . . . Critical Strikes 6 | . . . . . 4 1 1 Burn 5 | . . . . . 4 1 . Blast 1 | . . . . . . . 1 Melee Attacks . | . . . . . . . . Impact . | . . . . . . . . Slashing . | . . . . . . . . Piercing . | . . . . . . . . Sneak Attacks . | . . . . . . . . Combat Hostiles . | . . . . . . . . Follow-up Attacks . | . . . . . . . . Damage Inflicted 5684 | . 316 49 398 128 2491 993 1309 Guns 4050 | . 296 10 193 22 1944 857 728 Cannons 1151 | . 20 23 62 106 359 . 581 Explosions 392 | . . . 123 . 136 133 . Melee . | . . . . . . . . Ramming 91 | . . 16 20 . 52 3 . Kinetic 1752 | . 316 33 255 128 347 51 622 Thermal 3449 | . . . . . 1956 806 687 Explosive 392 | . . . 123 . 136 133 . Electromagnetic . | . . . . . . . . Impact . | . . . . . . . . Slashing . | . . . . . . . . Piercing . | . . . . . . . . Highest Corruption 9 | . 4 4 . . . 1 9 Average Corruption 3 | . 3 4 . . . 1 6 Corruption Purged . | . . . . . . . . Corruption Blocked . | . . . . . . . . Effects 39 | . 9 20 . . . 3 7 Message Errors 7 | . . 5 . . . 1 1 Matter Fused 8 | . 3 3 . . . . 2 Heat Flow Errors 3 | . 2 1 . . . . . Energy Discharges 5 | . 1 4 . . . . . Parts Rejected 1 | . . . . . . . 1 Data Loss (minor) 7 | . 1 3 . . . 2 1 Data Loss (major) 3 | . . 1 . . . . 2 Misfires 4 | . 1 3 . . . . . Alerts 1 | . 1 . . . . . . Overload Shots . | . . . . . . . . Overflow Damage . | . . . . . . . . Projectiles . | . . . . . . . . Explosions . | . . . . . . . . Melee . | . . . . . . . . Knockbacks 7 | . 1 1 1 1 . . 3 Impact . | . . . . . . . . Kinetic 7 | . 1 1 1 1 . . 3 Secondary . | . . . . . . . . Self-Inflicted Damage 97 | . . . . . 80 17 . Shots 3 | . . . . . 2 1 . Rammed 14 | . . 4 4 . 6 . . Targets Rammed 18 | . . 4 4 . 8 1 1 Kicked 3 | . . . . . 1 1 1 Crushed 1 | . . . . . 1 . . Highest Temperature 530 | . 280 175 51 . 530 411 526 Average Temperature 148 | . 71 74 18 . 138 133 235 Received Heat Transfer 1895 | . 81 . 146 4 839 102 723 Effects 23 | . . . . . 4 4 15 Shutdowns 9 | . . . . . 1 2 6 Energy Bleed 4 | . . . . . 1 1 2 Interference 5 | . . . . . 1 . 4 Matter Decay 3 | . . . . . 1 1 1 Short Circuit 1 | . . . . . . . 1 Damage (minor) 1 | . . . . . . . 1 Siege Activations . | . . . . . . . . Robots Corrupted . | . . . . . . . . Combat Hostiles . | . . . . . . . . Parts Fried . | . . . . . . . . Impact Corruptions . | . . . . . . . . Robots Melted 4 | . . . . . 3 . 1 Combat Hostiles 4 | . . . . . 3 . 1 Parts Melted 19 | . . . . . 13 3 3 Heat Transferred 7427 | . . . . . 4292 1719 1416 Parts Sabotaged . | . . . . . . . . Parts Stolen . | . . . . . . . . Parts Stripped . | . . . . . . . . Power Chain Reactions . | . . . . . . . . Alert | -11 -10 -10 -9 -9 -8 -7 -6 ------- Run | Yrd Mat Min Mat Min Mat Fac Fac Peak Influence 386 | . 185 9 186 30 386 195 231 Initial 175 | . . 9 1 25 . 175 42 Average 81 | . 48 6 65 16 136 110 98 Maximum Alert Level 1 | . . . . . 1 . 1 Low Security (%) 92 | 100 100 100 100 100 71 100 88 Level 1 7 | . . . . . 28 . 11 Level 2 . | . . . . . . . . Level 3 . | . . . . . . . . Level 4 . | . . . . . . . . Level 5 . | . . . . . . . . High Security . | . . . . . . . . Max Security . | . . . . . . . . Squads Dispatched 12 | . . . 2 . 4 2 4 Investigation 1 | . . . . . 1 . . Extermination 3 | . . . . . . 2 1 Reinforcement 6 | . . . 2 . 3 . 1 Assault 1 | . . . . . . . 1 Garrison 1 | . . . . . . . 1 Intercept . | . . . . . . . . Searches Triggered . | . . . . . . . . Construction Impeded 1 | . . . . . . . 1 Haulers Reinforced . | . . . . . . . . Active Scanning Responses . | . . . . . . . . Cargo Convoy Interrupts . | . . . . . . . . Stealth | -11 -10 -10 -9 -9 -8 -7 -6 --------- Run | Yrd Mat Min Mat Min Mat Fac Fac Distress Signals 8 | . 1 . 1 . 4 . 2 Communications Jammed . | . . . . . . . . Distress Signals . | . . . . . . . . Times Spotted 113 | . 14 . 17 2 45 11 24 Peak Tracking Total 10 | . 4 . 4 2 7 4 10 Tactical Retreats 5 | . . . . . 3 . 2 Traps | -11 -10 -10 -9 -9 -8 -7 -6 ------- Run | Yrd Mat Min Mat Min Mat Fac Fac Traps Triggered 5 | . 2 . . . 1 2 . Indirectly . | . . . . . . . . Trap Hack Attempts . | . . . . . . . . Triggered . | . . . . . . . . Disarmed 6 | . . . 6 . . . . Reprogrammed . | . . . . . . . . Reused . | . . . . . . . . Traps Extracted . | . . . . . . . . Installed . | . . . . . . . . Triggered . | . . . . . . . . Machines | -11 -10 -10 -9 -9 -8 -7 -6 ---------- Run | Yrd Mat Min Mat Min Mat Fac Fac Machines Disabled 7 | . . . . . 4 1 2 Max in Single Turn 1 | . . . . . 1 1 1 Garrison Access 1 | . . . . . . . 1 Machines Repaired . | . . . . . . . . Machines Dismantled . | . . . . . . . . Machines Sabotaged . | . . . . . . . . Overloaded Fab Kills . | . . . . . . . . Hacking | -11 -10 -10 -9 -9 -8 -7 -6 --------- Run | Yrd Mat Min Mat Min Mat Fac Fac Machines Accessed 10 | . 1 . 2 . 3 3 1 Terminals 7 | . 1 . 1 . 3 1 1 Fabricators 1 | . . . . . . 1 . Repair Stations . | . . . . . . . . Recycling Units 1 | . . . . . . 1 . Scanalyzers 1 | . . . 1 . . . . Garrison Access . | . . . . . . . . Total Hacks 24 | . 1 . 5 . 10 7 1 Successful 12 | . 1 . 5 . 2 3 1 Failed 12 | . . . . . 8 4 . Catastrophic . | . . . . . . . . Database Lockouts . | . . . . . . . . Manual . | . . . . . . . . Terminals 18 | . 1 . 3 . 10 3 1 Fabricators 2 | . . . . . . 2 . Repair Stations . | . . . . . . . . Recycling Units 2 | . . . . . . 2 . Scanalyzers 2 | . . . 2 . . . . Garrison Access . | . . . . . . . . Terminal Hacks 9 | . 1 . 3 . 2 2 1 Open DSF 1 | . . . . . . . 1 Emergency Access Points 1 | . 1 . . . . . . Locate Traps 1 | . . . 1 . . . . Disarm Traps 1 | . . . 1 . . . . Dispatch Records 1 | . . . . . 1 . . Reinforcement Status 2 | . . . 1 . . 1 . Registered Components 1 | . . . . . . 1 . Zone Layout 1 | . . . . . 1 . . Fabricator Hacks 1 | . . . . . . 1 . Build 1 | . . . . . . 1 . Repair Station Hacks . | . . . . . . . . Recycling Unit Hacks . | . . . . . . . . Scanalyzer 2 | . . . 2 . . . . Insert Component 1 | . . . 1 . . . . Analyze 1 | . . . 1 . . . . Garrison Access Hacks . | . . . . . . . . Unauthorized Hacks . | . . . . . . . . Terminals . | . . . . . . . . Fabricators . | . . . . . . . . Repair Stations . | . . . . . . . . Recycling Units . | . . . . . . . . Scanalyzers . | . . . . . . . . Garrison Access . | . . . . . . . . Data Cores Recovered 1 | . . . . . . . 1 Used . | . . . . . . . . Hacking Detections 5 | . 1 . . . 2 2 . Full Trace Events 1 | . . . . . 1 . . Feedback Events . | . . . . . . . . Feedback Blocked . | . . . . . . . . Robot Schematics Acquired . | . . . . . . . . Robots Built 3 | . . . . . . 3 . Authchips . | . . . . . . . . Time 134 | . . . . . . 134 . Total Robot Build Rating 12 | . . . . . . 12 . Part Schematics Acquired 1 | . . . 1 . . . . Parts Built . | . . . . . . . . Authchips . | . . . . . . . . Time . | . . . . . . . . Total Part Build Rating . | . . . . . . . . Parts Repaired . | . . . . . . . . Time . | . . . . . . . . Parts Recycled . | . . . . . . . . Recycled Matter . | . . . . . . . . Retrieved Matter . | . . . . . . . . Retrieved Components . | . . . . . . . . Parts Scanalyzed 1 | . . . 1 . . . . Part Schematics Acquired 1 | . . . 1 . . . . Parts Damaged 1 | . . . 1 . . . . Bothacking | -11 -10 -10 -9 -9 -8 -7 -6 ------------ Run | Yrd Mat Min Mat Min Mat Fac Fac Used RIF Installer . | . . . . . . . . Robots Hacked . | . . . . . . . . Non-combat . | . . . . . . . . Combat . | . . . . . . . . Robot Hacks Applied . | . . . . . . . . Relay Couplers Released 1 | . . . . . . . 1 Machine Destruction 1 | . . . . . . . 1 Fabnet Peak Effective % . | . . . . . . . . Robots Rewired . | . . . . . . . . Allies Hacked . | . . . . . . . . Hacks Repelled . | . . . . . . . . Allies | -11 -10 -10 -9 -9 -8 -7 -6 -------- Run | Yrd Mat Min Mat Min Mat Fac Fac Total Allies 4 | . . 1 . . . 3 . Largest Group 3 | . . 1 . . . 3 . Highest-Rated Group 90 | . . 31 . . . 90 . Highest-Rated Ally 31 | . . 31 . . . 30 . Total Orders . | . . . . . . . . Ally Attacks 20 | . . . . . . 20 . Total Damage 587 | . . . . . . 587 . Kills 6 | . . . . . . 6 . Allies Corrupted . | . . . . . . . . Allies Melted . | . . . . . . . . Intel | -11 -10 -10 -9 -9 -8 -7 -6 ------- Run | Yrd Mat Min Mat Min Mat Fac Fac Robot Analysis Total . | . . . . . . . . Derelict Logs Recovered 1 | . . 1 . . . . . Drone Launches . | . . . . . . . . Drone Recoveries . | . . . . . . . . Exploration | -11 -10 -10 -9 -9 -8 -7 -6 ------------- Run | Yrd Mat Min Mat Min Mat Fac Fac Turns Passed 7926 | 61 698 765 700 1213 1973 2008 508 Spaces Moved 3147 | 45 336 310 250 490 691 855 170 Core 24 | 24 . . . . . . . Treads 1945 | 21 336 310 250 490 476 62 . Legs 1178 | . . . . . 215 793 170 Wheels . | . . . . . . . . Hover . | . . . . . . . . Flight . | . . . . . . . . Fastest Speed 50 | 50 160 240 240 240 160 190 190 Average Speed 210 | 110 171 240 240 240 205 198 203 Slowest Speed 330 | 160 240 240 240 240 320 325 330 Overloaded Moves . | . . . . . . . . Propulsion Burnouts . | . . . . . . . . Robots Hopped . | . . . . . . . . Cave-ins Triggered . | . . . . . . . . Exploration Rate (%) 37 | 4 48 66 20 82 54 17 6 Regions Visited 7 Branch Regions 2 Pre-discovered Areas 2 | . . 1 . 1 . . . Known Exits Taken . | . . . . . . . . Unknown Exits Taken 7 | 1 1 1 1 1 1 1 . Scrap Searched 3 | . . 1 . 2 . . . Spaces Dug . | . . . . . . . . Terrain Destroyed 115 | . . . 61 . 44 2 8 Melee . | . . . . . . . . Projectile 9 | . . . . . 1 . 8 AOE 106 | . . . 61 . 43 2 . Terrain Rammed . | . . . . . . . . Walls Destroyed . | . . . . . . . . Machines Disabled . | . . . . . . . . Actions | -11 -10 -10 -9 -9 -8 -7 -6 --------- Run | Yrd Mat Min Mat Min Mat Fac Fac Total 4080 | 56 402 326 305 516 1092 1121 262 Wait 470 | . . 10 17 14 218 170 41 Move 3140 | 44 335 309 249 489 690 854 170 Hop . | . . . . . . . . Pick Up 101 | 6 21 2 3 3 35 29 2 Fast Attach 2 | 1 . . 1 . . . . Attach 44 | 5 2 . 1 1 19 4 12 Detach 3 | . . . . . 3 . . Swap 52 | . 4 1 2 . 20 23 2 Drop 54 | . 4 . 2 2 25 21 . Fire 196 | . 36 . 26 7 74 19 34 Melee . | . . . . . . . . Ram . | . . . . . . . . Kick 3 | . . . . . 1 1 1 Crush 15 | . . 4 4 . 7 . . Escape Stasis . | . . . . . . . . Rewire . | . . . . . . . . Trap . | . . . . . . . . Miscellaneous . | . . . . . . . . Route ------- -11/Scrapyard -10/Materials -10/Mines -9/Materials -9/Mines -8/Materials (discovered 2 exits: *Fac / [*Sto]) -7/Factory -6/Factory History --------- Turn | Location | Event 5 | -11/Scrapyard | Discovered new exit (range 16) 62 | -11/Scrapyard | Entered Materials 304 | -10/Materials | Build established: Mutant 428 | -10/Materials | Discovered new exit (range 7) 760 | -10/Materials | Entered Mines 1023 | -10/Mines | Received a Mining Laser from a helpful Derelict 1234 | -10/Mines | Discovered new exit (range 15) 1277 | -10/Mines | Received a Rocket Launcher from a helpful Derelict 1360 | -10/Mines | Found a hidden stash of uninstalled traps 1525 | -10/Mines | Entered Materials 1525 | -9/Materials | Evolved 2 slots: Utility x2 2093 | -9/Materials | Discovered new exit (range 15) 2225 | -9/Materials | Entered Mines 2335 | -9/Mines | YI-UF0 nonchalantly dropped a Grenade Launcher on the ground 2807 | -9/Mines | Learned location of Storage (-8) 3416 | -9/Mines | Discovered new exit (range 8) 3438 | -9/Mines | Entered Materials 3438 | -8/Materials | Evolved 2 slots: Propulsion x1, Weapon x1 3440 | -8/Materials | Discovered new exit (range 8) 3738 | -8/Materials | Build established: Tank 4388 | -8/Materials | Discovered new exit (range 3) 4845 | -8/Materials | Core integrity fell below 50% 5361 | -8/Materials | Build established: Gunner 5411 | -8/Materials | Entered Factory 5411 | -7/Factory | Evolved 2 slots: Power x1, Utility x1 6195 | -7/Factory | Fabricated L-41 Fighter (x3) 6267 | -7/Factory | Discovered new exit (range 16) 7419 | -7/Factory | Entered another Factory area 7419 | -6/Factory | Evolved 2 slots: Propulsion x1, Weapon x1 7734 | -6/Factory | Garrison activated, responded to threat 7900 | -6/Factory | Lost 12 parts (3p4n2u3w) 7922 | -6/Factory | Core integrity fell below 50% 7927 | -6/Factory | Self-destructed Last Messages --------------- M-28 Smith unfolds itself. Critical hit (Burn: +37). K-01 Serf collects debris. Adv. Assault Cannon destroyed. Kinecellerator destroyed. K-01 Serf collects debris. System corrupted: Matter fused (-5). K-01 Serf collects debris. Critical hit (Burn: +37). Imp. Shield Generator destroyed. K-01 Serf collects debris. Imp. Carbon-fiber Leg destroyed. K-01 Serf collects debris. Titanium Leg destroyed. Imp. Carbon-fiber Leg destroyed. M-28 Smith repairs G-50 Soldier. System corrupted: Enh. Autogun rejected. K-01 Serf collects debris. M-28 Smith repairs G-50 Soldier. K-01 Serf collects debris. Map ----- +----------------------------------------------------+ | ?????????????????????????????????????????????????? | | ?????????????????????????????????????????????????? | | ?????????????????????????????????????????????????? | | ?????????????????????????????????????????????????? | | ?????????????????????????????????????????????????? | | "????????????????????????????????????????????????? | | ?????????????????????????????????????????????????? | | "????????????????????????????????????????????????? | | " ??????????????????????????????????????????????? | | " ?? ????????????????????????????????????????????? | | ???????????????????????????????????????????? | | " #?????????????????????????????????????????? | | " #?????????????????????????????????????????? | | " #???????????????? ?????????????????????? | | #??????????# ??? ? #?????????????????? | | " #??????????# ^ #?????????????????? | | " #??????????# """"""" #?????????????????? | | " #??????????# """"""" #?????????????????? | | #??????????# """"""" #?????????????????? | | ##########?# """"""" #???#+###?????????? | | ## # #?# #?? ##????????? | | ##?? # #?#######+######## % k ???????? | | ## ? # ###???# g [ T ?????????? | | #? # + #???# g # ???????? | | #? # # #???# [gm" #???????????????? | | #? # # ##### [@ % " #???????????????? | | #? # # ! ! " ##??????????????? | | ## # ####### ##??????????????? | | ## ##"########????# k % % g##??????????????? | | ## # #????# % %% g + "???????????? | | ## + #????# g # """?????????? | | ## # #????+ w # ""??????????? | | ## # ! #????# +%????????????? | | ## # =%% #????# " " # ????????????? | | ## # #????# $ " "" # ??????????? | | ## # #????# """" #? ??????????? | | # # #????# """" #??#??????????? | | + ####+######????# """? #?????????????? | | # #??# #?????????# "???? #?????????????? | | # #??# #?????????# "????? #?????????????? | | # #??# #?????????# ?????? #?????????????? | | # #??# #?????????# ?????????????????????? | | # #### ########### ?????????????????????? | | # ?????????????????????? | | # ????????????????????? | | ## ????????????????????? | | ?# !????????????????????? | | ?# ????????????????????? | | ?###### T########+#########??????????????????????? | | ??????####???????????????????????????????????????? | +----------------------------------------------------+ Best States ------------- Heat Dissipation 61 Energy Generation 29 Energy Capacity 350 Matter Stores 300 Matter Capacity 300 Sight Range 16 Terrain Scan Density 10 ECM Strength 1 Additional Mass Support 9 Armor Coverage 150 Utility Shielding 33 Evasion (%) 50 Targeting Accuracy 8 Core Analysis 6 Recoil Reduction 3 Kinecelleration 30 Item Schematics ----------------- Datajack | -9/Materials | Scanalyzed Robot Schematics ------------------ None Fabricated ------------ L-41 Fighter | x3 | -7/Factory | Preloaded Alien Tech Used ----------------- None Achievements -------------- My Command Is Your Wish Challenges ------------ None Game ------ Seed lesbian sex Manual? 1 Play Time 01:12:35 Cumulative 11.8 hours Start 2024.04.08 @ 09:42:01 End 2024.04.08 @ 13:07:32 Sessions 1 Manual Loads 0 Difficulty Rogue Special Mode None Game No. 27 Rogue 27 Adventurer 0 Explorer 0 Win Type - Total 0 Types 0/0/0/0/0/0/0/0/0 Lore% 6 Gallery% 18 Achievement% 14 Wizard Run 0 Options --------- Layout 1 ASCII 0 Keyboard 0 Movement Mouse Keybinds 0 Fullscreen 2 Font 24/Smallcaps Map View 50x35 Zoom Use 0% Tactical HUD 0 Map Filters NONE Filters NONE Steam 1 RUN: ba40c0e5-ce00-4aca-905d-46ce6f950f01